fUSD/lending_fUSD_20260614
["ID","MTS","AMOUNT","RATE_DAILY","PERIOD"]
[425012324,1781415047000,-500.0,0.00027945,8]
[425012331,1781415047000,-1675.91,0.00027945,8]
[425012332,1781415047000,-500.0,0.00027945,8]
[425012329,1781415047000,-2115.09,0.00027945,8]
[425012334,1781415047000,-500.0,0.00027945,8]
[425012330,1781415047000,-500.0,0.00027945,8]
[425012335,1781415047000,-1198.28,0.00027945,8]
[425012328,1781415047000,-500.0,0.00027945,8]
[425012326,1781415047000,-1659.48,0.00027945,8]
[425012327,1781415047000,-500.0,0.00027945,8]
[425012337,1781415047000,-1673.77,0.00027945,8]
[425012349,1781415047000,-500.0,0.00027945,8]
[425012339,1781415047000,-500.0,0.00027945,8]
[425012338,1781415047000,-500.0,0.00027945,8]
[425012322,1781415047000,-500.0,0.00027945,8]
[425012333,1781415047000,-585.03,0.00027945,8]
[425012317,1781415047000,-583.27,0.00027945,8]
[425012309,1781415047000,-1912.54,0.00027945,8]
[425012318,1781415047000,-500.0,0.00027945,8]
[425012342,1781415047000,-1289.21,0.00027945,8]
[425012304,1781415047000,-500.0,0.00027945,8]
[425012303,1781415047000,-500.0,0.00027945,8]
[425012302,1781415047000,-500.0,0.00027945,8]
[425012300,1781415047000,-722.31,0.00027945,8]
[425012301,1781415047000,-781.07,0.00027945,8]
[425012299,1781415047000,-500.0,0.00027945,8]
[425012306,1781415047000,-500.0,0.00027945,8]
[425012305,1781415047000,-500.0,0.00027945,8]
[425012308,1781415047000,-500.0,0.00027945,8]
[425012307,1781415047000,-1123.95,0.00027945,8]
[425012311,1781415047000,-500.0,0.00027945,8]
[425012312,1781415047000,-831.75,0.00027945,8]
[425012313,1781415047000,-500.0,0.00027945,8]
[425012310,1781415047000,-1784.22,0.00027945,8]
[425012315,1781415047000,-557.26,0.00027945,8]
[425012321,1781415047000,-500.0,0.00027945,8]
[425012320,1781415047000,-545.5,0.00027945,8]
[425012319,1781415047000,-500.0,0.00027945,8]
[425012316,1781415047000,-784.08,0.00027945,8]
[425012345,1781415047000,-500.0,0.00027945,8]
[425012314,1781415047000,-532.89,0.00027945,8]
[425012346,1781415047000,-1080.75,0.00027945,8]
[425012370,1781415047000,-500.0,0.00027945,8]
[425012368,1781415047000,-500.0,0.00027945,8]
[425012371,1781415047000,-500.0,0.00027945,8]
[425012366,1781415047000,-500.0,0.00027945,8]
[425012386,1781415047000,-178.83003238,0.00027945,8]
[425012377,1781415047000,-500.0,0.00027945,8]
[425012374,1781415047000,-500.0,0.00027945,8]
[425012380,1781415047000,-617.31,0.00027945,8]
[425012379,1781415047000,-500.0,0.00027945,8]
[425012375,1781415047000,-500.0,0.00027945,8]
[425012376,1781415047000,-528.66,0.00027945,8]
[425012373,1781415047000,-500.0,0.00027945,8]
[425012381,1781415047000,-454.70738356,0.00027945,8]
[425012383,1781415047000,-1087.19,0.00027945,8]
[425012378,1781415047000,-500.0,0.00027945,8]
[425012382,1781415047000,-600.36,0.00027945,8]
[425012385,1781415047000,-583.88,0.00027945,8]
[425012384,1781415047000,-500.0,0.00027945,8]
[425012341,1781415047000,-1059.93,0.00027945,8]
[425012367,1781415047000,-1015.69,0.00027945,8]
[425012369,1781415047000,-1615.21,0.00027945,8]
[425012372,1781415047000,-614.1,0.00027945,8]
[425012361,1781415047000,-500.0,0.00027945,8]
[425012343,1781415047000,-500.0,0.00027945,8]
[425012348,1781415047000,-913.06,0.00027945,8]
[425012365,1781415047000,-1073.91,0.00027945,8]
[425012344,1781415047000,-500.0,0.00027945,8]
[425012347,1781415047000,-500.0,0.00027945,8]
[425012351,1781415047000,-845.71,0.00027945,8]
[425012353,1781415047000,-645.65,0.00027945,8]
[425012350,1781415047000,-500.0,0.00027945,8]
[425012352,1781415047000,-222.38830633,0.00027945,8]
[425012354,1781415047000,-691.93,0.00027945,8]
[425012340,1781415047000,-589.15,0.00027945,8]
[425012356,1781415047000,-1471.09,0.00027945,8]
[425012359,1781415047000,-559.98,0.00027945,8]
[425012357,1781415047000,-681.29,0.00027945,8]
[425012358,1781415047000,-500.0,0.00027945,8]
[425012355,1781415047000,-500.0,0.00027945,8]
[425012362,1781415047000,-516.16,0.00027945,8]
[425012363,1781415047000,-500.0,0.00027945,8]
[425012364,1781415047000,-2587.9,0.00027945,8]
[425012360,1781415047000,-500.0,0.00027945,8]
[425012402,1781415048000,-500.0,0.00027945,8]
[425012397,1781415048000,-561.61,0.00027945,8]
[425012398,1781415048000,-1755.57,0.00027945,8]
[425012396,1781415048000,-517.2,0.00027945,8]
[425012394,1781415048000,-701.07,0.00027945,8]
[425012405,1781415048000,-842.87,0.00027945,8]
[425012395,1781415048000,-620.51,0.00027945,8]
[425012389,1781415048000,-1039.97,0.00027945,8]
[425012393,1781415048000,-909.15,0.00027945,8]
[425012391,1781415048000,-425.35772303,0.00027945,8]
[425012390,1781415048000,-2777.35,0.00027945,8]
[425012387,1781415048000,-321.16996762,0.00027945,8]
[425012388,1781415048000,-500.0,0.00027945,8]
[425012401,1781415048000,-500.0,0.00027945,8]
[425012392,1781415048000,-74.64227697,0.00027945,8]
[425012403,1781415048000,-2111.57,0.00027945,8]
[425012406,1781415048000,-500.0,0.00027945,8]
[425012399,1781415048000,-558.03,0.00027945,8]
[425012420,1781415048000,-500.0,0.00027945,8]
[425012400,1781415048000,-500.0,0.00027945,8]
[425012418,1781415048000,-500.0,0.00027945,8]
[425012419,1781415048000,-500.0,0.00027945,8]
[425012413,1781415048000,-1172.34011314,0.00027945,8]
[425012415,1781415048000,-1427.35,0.00027945,8]
[425012412,1781415048000,-249.86988686,0.00027945,8]
[425012417,1781415048000,-542.97,0.00027945,8]
[425012414,1781415048000,-500.0,0.00027945,8]
[425012410,1781415048000,-162.7792117,0.00027945,8]
[425012407,1781415048000,-51.8497117,0.00027945,8]
[425012404,1781415048000,-500.0,0.00027945,8]
[425012409,1781415048000,-500.0,0.00027945,8]
[425012408,1781415048000,-448.1502883,0.00027945,8]
[425012416,1781415048000,-500.0,0.00027945,8]
[425012411,1781415048000,-901.4307883,0.00027945,8]
[425012457,1781415049000,-500.0,0.00027945,8]
[425012462,1781415049000,-500.0,0.00027945,8]
[425012455,1781415049000,-500.0,0.00027945,8]
[425012456,1781415049000,-1879.34,0.00027945,8]
[425012454,1781415049000,-813.15,0.00027945,8]
[425012453,1781415049000,-1603.48,0.00027945,8]
[425012446,1781415049000,-500.0,0.00027945,8]
[425012459,1781415049000,-500.0,0.00027945,8]
[425012449,1781415049000,-500.0,0.00027945,8]
[425012463,1781415049000,-730.92,0.00027945,8]
[425012460,1781415049000,-500.0,0.00027945,8]
[425012472,1781415049000,-1329.92,0.00027945,8]
[425012458,1781415049000,-500.0,0.00027945,8]
[425012464,1781415049000,-500.0,0.00027945,8]
[425012469,1781415049000,-500.0,0.00027945,8]
[425012471,1781415049000,-500.0,0.00027945,8]
[425012475,1781415049000,-500.0,0.00027945,8]
[425012447,1781415049000,-465.66938515,0.00027945,8]
[425012465,1781415049000,-500.0,0.00027945,8]
[425012473,1781415049000,-500.0,0.00027945,8]
[425012474,1781415049000,-500.0,0.00027945,8]
[425012470,1781415049000,-500.0,0.00027945,8]
[425012476,1781415049000,-500.0,0.00027945,8]
[425012468,1781415049000,-1793.44,0.00027945,8]
[425012461,1781415049000,-500.0,0.00027945,8]
[425012451,1781415049000,-500.0,0.00027945,8]
[425012431,1781415049000,-500.0,0.00027945,8]
[425012450,1781415049000,-500.0,0.00027945,8]
[425012466,1781415049000,-2702.99,0.00027945,8]
[425012421,1781415049000,-350.53072735,0.00027945,8]
[425012423,1781415049000,-779.47,0.00027945,8]
[425012427,1781415049000,-560.67003802,0.00027945,8]
[425012429,1781415049000,-500.0,0.00027945,8]
[425012424,1781415049000,-500.0,0.00027945,8]
[425012428,1781415049000,-500.0,0.00027945,8]
[425012422,1781415049000,-702.92,0.00027945,8]
[425012426,1781415049000,-500.0,0.00027945,8]
[425012425,1781415049000,-500.0,0.00027945,8]
[425012430,1781415049000,-500.0,0.00027945,8]
[425012436,1781415049000,-500.0,0.00027945,8]
[425012433,1781415049000,-500.0,0.00027945,8]
[425012432,1781415049000,-500.0,0.00027945,8]
[425012434,1781415049000,-622.55,0.00027945,8]
[425012439,1781415049000,-584.67460254,0.00027945,8]
[425012440,1781415049000,-908.29539746,0.00027945,8]
[425012437,1781415049000,-1929.81,0.00027945,8]
[425012435,1781415049000,-1516.11,0.00027945,8]
[425012452,1781415049000,-500.0,0.00027945,8]
[425012442,1781415049000,-500.0,0.00027945,8]
[425012441,1781415049000,-541.98,0.00027945,8]
[425012444,1781415049000,-500.0,0.00027945,8]
[425012445,1781415049000,-500.0,0.00027945,8]
[425012443,1781415049000,-749.09,0.00027945,8]
[425012448,1781415049000,-1063.21,0.00027945,8]
[425012467,1781415049000,-1057.13,0.00027945,8]
[425012438,1781415049000,-1889.86,0.00027945,8]
[425012478,1781415049000,-678.81,0.00027945,8]
[425012511,1781415049000,-714.13,0.00027945,8]
[425012510,1781415049000,-500.0,0.00027945,8]
[425012503,1781415049000,-546.99823931,0.00027945,8]
[425012509,1781415049000,-500.0,0.00027945,8]
[425012513,1781415049000,-500.0,0.00027945,8]
[425012512,1781415049000,-1285.45,0.00027945,8]
[425012522,1781415049000,-919.65,0.00027945,8]
[425012516,1781415049000,-1535.4,0.00027945,8]
[425012515,1781415049000,-723.45,0.00027945,8]
[425012517,1781415049000,-500.0,0.00027945,8]
[425012518,1781415049000,-3262.01,0.00027945,8]
[425012514,1781415049000,-777.97,0.00027945,8]
[425012519,1781415049000,-500.0,0.00027945,8]
[425012520,1781415049000,-601.2,0.00027945,8]
[425012521,1781415049000,-629.84,0.00027945,8]
[425012524,1781415049000,-500.0,0.00027945,8]
[425012526,1781415049000,-61.04052192,0.00027945,8]
[425012525,1781415049000,-1611.75947808,0.00027945,8]
[425012527,1781415049000,-427.03666775,0.00027945,8]
[425012529,1781415049000,-500.0,0.00027945,8]
[425012528,1781415049000,-72.96333225,0.00027945,8]
[425012530,1781415049000,-1545.51,0.00027945,8]
[425012531,1781415049000,-1383.07,0.00027945,8]
[425012532,1781415049000,-1111.21,0.00027945,8]
[425012488,1781415049000,-1112.24,0.00027945,8]
[425012506,1781415049000,-500.0,0.00027945,8]
[425012507,1781415049000,-765.46,0.00027945,8]
[425012523,1781415049000,-1237.19,0.00027945,8]
[425012505,1781415049000,-540.12,0.00027945,8]
[425012490,1781415049000,-1267.91,0.00027945,8]
[425012477,1781415049000,-500.0,0.00027945,8]
[425012480,1781415049000,-500.0,0.00027945,8]
[425012489,1781415049000,-599.38,0.00027945,8]
[425012479,1781415049000,-970.52,0.00027945,8]
[425012508,1781415049000,-500.0,0.00027945,8]
[425012483,1781415049000,-500.0,0.00027945,8]
[425012484,1781415049000,-510.01,0.00027945,8]
[425012486,1781415049000,-500.0,0.00027945,8]
[425012482,1781415049000,-584.87,0.00027945,8]
[425012485,1781415049000,-500.0,0.00027945,8]
[425012487,1781415049000,-500.0,0.00027945,8]
[425012492,1781415049000,-574.78,0.00027945,8]
[425012481,1781415049000,-500.0,0.00027945,8]
[425012493,1781415049000,-1025.96,0.00027945,8]
[425012491,1781415049000,-500.0,0.00027945,8]
[425012504,1781415049000,-1052.46,0.00027945,8]
[425012502,1781415049000,-632.32,0.00027945,8]
[425012498,1781415049000,-989.38,0.00027945,8]
[425012497,1781415049000,-500.0,0.00027945,8]
[425012495,1781415049000,-500.0,0.00027945,8]
[425012501,1781415049000,-500.0,0.00027945,8]
[425012494,1781415049000,-500.0,0.00027945,8]
[425012496,1781415049000,-500.0,0.00027945,8]
[425012499,1781415049000,-500.0,0.00027945,8]
[425012500,1781415049000,-1057.83,0.00027945,8]
[425012534,1781415050000,-1822.51,0.00027945,8]
[425012542,1781415050000,-500.0,0.00027945,8]
[425012545,1781415050000,-745.76,0.00027945,8]
[425012544,1781415050000,-500.0,0.00027945,8]
[425012543,1781415050000,-1870.29,0.00027945,8]
[425012546,1781415050000,-2026.37,0.00027945,8]
[425012541,1781415050000,-2399.74,0.00027945,8]
[425012539,1781415050000,-1731.92,0.00027945,8]
[425012537,1781415050000,-235.91595096,0.00027945,8]
[425012536,1781415050000,-500.0,0.00027945,8]
[425012535,1781415050000,-1480.16,0.00027945,8]
[425012540,1781415050000,-500.0,0.00027945,8]
[425012533,1781415050000,-500.0,0.00027945,8]
[425012547,1781415050000,-500.0,0.00027945,8]
[425012538,1781415050000,-500.0,0.00027945,8]
[425012549,1781415050000,-500.0,0.00027945,8]
[425012556,1781415050000,-500.0,0.00027945,8]
[425012550,1781415050000,-960.18,0.00027945,8]
[425012563,1781415050000,-804.14,0.00027945,8]
[425012557,1781415050000,-500.0,0.00027945,8]
[425012558,1781415050000,-589.98,0.00027945,8]
[425012565,1781415050000,-379.90354301,0.00027945,8]
[425012564,1781415050000,-500.0,0.00027945,8]
[425012560,1781415050000,-1033.06,0.00027945,8]
[425012561,1781415050000,-500.0,0.00027945,8]
[425012562,1781415050000,-500.0,0.00027945,8]
[425012559,1781415050000,-500.0,0.00027945,8]
[425012551,1781415050000,-855.82,0.00027945,8]
[425012552,1781415050000,-500.0,0.00027945,8]
[425012548,1781415050000,-500.0,0.00027945,8]
[425012554,1781415050000,-878.41,0.00027945,8]
[425012555,1781415050000,-500.0,0.00027945,8]
[425012553,1781415050000,-500.0,0.00027945,8]
[425012566,1781415101000,350.0,0.00013699,2]
[425012568,1781415174000,350.0,0.00013699,2]
[425012569,1781415365000,-350.0,0.00016609,2]
[425012571,1781415573000,-400.0,0.00016767,2]
[425012572,1781415590000,-100.0,0.00016767,2]
[425012573,1781415625000,791.54,0.000136,2]
[425012574,1781415843000,294.81,0.000136,2]
[425012576,1781415943000,-235.05527827,0.00016438,2]
[425012575,1781415943000,-350.0,0.00015689,2]
[425012578,1781416042000,-322.64472173,0.00016438,2]
[425012579,1781416042000,-158.93244124,0.00016764,2]
[425012580,1781416052000,-59.06755876,0.00016764,2]
[425012581,1781416052000,-150.0,0.00016764,2]
[425012582,1781416052000,-500.0,0.00016764,2]
[425012583,1781416052000,-362.13585354,0.00016764,2]
[425012608,1781416231000,-162.0,0.0002,2]
[425012611,1781416231000,-155.0,0.0002,2]
[425012612,1781416231000,-180.0,0.0002,2]
[425012610,1781416231000,-278.0,0.0002,2]
[425012609,1781416231000,-154.0,0.0002,2]
[425012607,1781416231000,-544.09,0.0001995,2]
[425012605,1781416231000,-85.26441461,0.00019149,2]
[425012604,1781416231000,-796.65183994,0.00019149,2]
[425012606,1781416231000,-588.56107885,0.00019149,2]
[425012602,1781416231000,-350.0,0.00019042,2]
[425012603,1781416231000,-299.99,0.00019042,4]
[425012601,1781416231000,-278.0,0.00019,2]
[425012600,1781416231000,-1199.20623971,0.00018498,2]
[425012597,1781416231000,-151.0,0.0001764,2]
[425012596,1781416231000,-151.0,0.0001764,2]
[425012598,1781416231000,-1500.0,0.0001795,2]
[425012595,1781416231000,-540.97,0.00016931,2]
[425012593,1781416231000,-165.06907116,0.00016767,2]
[425012592,1781416231000,-500.0,0.00016767,2]
[425012613,1781416231000,-156.0,0.0002,2]
[425012594,1781416231000,-160.0,0.00016772,2]
[425012590,1781416231000,-500.0,0.00016767,2]
[425012591,1781416231000,-500.0,0.00016767,2]
[425012589,1781416231000,-350.0,0.00015841,2]
[425012599,1781416231000,-603.65811544,0.0001844,2]
[425012615,1781416231000,-154.0,0.0002,2]
[425012635,1781416231000,-500.0,0.00022808,2]
[425012616,1781416231000,-155.0,0.0002,2]
[425012614,1781416231000,-168.0,0.0002,2]
[425012640,1781416231000,-512.01600473,0.00022882,2]
[425012641,1781416231000,-151.0,0.00022882,2]
[425012639,1781416231000,-500.0,0.00022882,2]
[425012638,1781416231000,-500.0,0.00022882,2]
[425012637,1781416231000,-397.12832807,0.00022808,2]
[425012636,1781416231000,-500.0,0.00022808,2]
[425012632,1781416231000,-500.0,0.00022808,2]
[425012629,1781416231000,-151.0,0.00022353,2]
[425012630,1781416231000,-500.0,0.00022808,2]
[425012631,1781416231000,-500.0,0.00022808,2]
[425012633,1781416231000,-500.0,0.00022808,2]
[425012634,1781416231000,-500.0,0.00022808,2]
[425012624,1781416231000,-350.0,0.00021938,4]
[425012627,1781416231000,-156.0,0.00022,2]
[425012625,1781416231000,-155.0,0.00022,2]
[425012626,1781416231000,-180.0,0.00022,2]
[425012617,1781416231000,-155.0,0.00021,2]
[425012622,1781416231000,-3306.4,0.00021273,2]
[425012623,1781416231000,-150.0,0.00021918,2]
[425012620,1781416231000,-154.0,0.00021,2]
[425012621,1781416231000,-155.0,0.00021,2]
[425012618,1781416231000,-180.0,0.00021,2]
[425012619,1781416231000,-156.0,0.00021,2]
[425012628,1781416231000,-155.0,0.00022,2]
[425012680,1781416232000,-160.0,0.00025605,2]
[425012681,1781416232000,-3306.4,0.00025786,2]
[425012678,1781416232000,-166.66,0.00025296,30]
[425012679,1781416232000,-1000.0,0.00025394,2]
[425012672,1781416232000,-166.66,0.00024805,30]
[425012673,1781416232000,-200.0,0.00024863,2]
[425012676,1781416232000,-178.36,0.00025009,120]
[425012675,1781416232000,-193.52542384,0.00025,2]
[425012674,1781416232000,-160.0,0.00024981,2]
[425012683,1781416232000,-166.66,0.00025787,30]
[425012677,1781416232000,-253.1,0.00025084,2]
[425012682,1781416232000,-1130.66,0.00025786,2]
[425012696,1781416232000,-994.495,0.00027268,16]
[425012685,1781416232000,-160.0,0.0002623,2]
[425012687,1781416232000,-359.07076628,0.00026756,7]
[425012692,1781416232000,-1558.0,0.00026945,120]
[425012691,1781416232000,-350.0,0.00026931,8]
[425012690,1781416232000,-4905.263389,0.00026914,2]
[425012689,1781416232000,-160.0,0.00026854,2]
[425012686,1781416232000,-151.0,0.00026296,2]
[425012688,1781416232000,-9072.4552,0.00026845,2]
[425012694,1781416232000,-770.3,0.00027,2]
[425012695,1781416232000,-644.0,0.00027,30]
[425012693,1781416232000,-2049.64075598,0.00026977,2]
[425012671,1781416232000,-270.82,0.00024754,2]
[425012697,1781416232000,-455.72,0.00027397,10]
[425012684,1781416232000,-1417.44,0.00025922,2]
[425012669,1781416232000,-155.22,0.00024616,2]
[425012657,1781416232000,-166.66,0.00023331,30]
[425012668,1781416232000,-5000.0,0.00024582,2]
[425012699,1781416232000,-160.0,0.00027479,2]
[425012642,1781416232000,-151.0,0.00022882,2]
[425012643,1781416232000,-151.0,0.00022882,2]
[425012644,1781416232000,-151.0,0.00022882,2]
[425012645,1781416232000,-151.0,0.00022882,2]
[425012646,1781416232000,-151.0,0.00022882,2]
[425012648,1781416232000,-151.0,0.00022882,2]
[425012647,1781416232000,-151.0,0.00022882,2]
[425012651,1781416232000,-200.29866833,0.00022882,2]
[425012649,1781416232000,-151.0,0.00022882,2]
[425012650,1781416232000,-151.0,0.00022882,2]
[425012656,1781416232000,-150.0,0.00023331,2]
[425012670,1781416232000,-229.52,0.00024658,2]
[425012653,1781416232000,-180.0,0.00023,2]
[425012654,1781416232000,-156.0,0.00023,2]
[425012655,1781416232000,-171.0,0.00023,2]
[425012659,1781416232000,-180.0,0.00024,2]
[425012658,1781416232000,-166.66,0.00023822,30]
[425012662,1781416232000,-151.0,0.00024324,2]
[425012661,1781416232000,-166.66,0.00024314,30]
[425012660,1781416232000,-1130.66,0.00024174,2]
[425012664,1781416232000,-841.42,0.00024542,2]
[425012665,1781416232000,-350.0,0.00024559,5]
[425012663,1781416232000,-1332.4,0.00024536,2]
[425012667,1781416232000,-376.04,0.00024569,2]
[425012666,1781416232000,-1604.35,0.00024559,2]
[425012652,1781416232000,-162.0,0.00023,2]
[425012698,1781416232000,-21234.9040369,0.00027467,2]
[425012705,1781416232000,-200.0,0.00027585,2]
[425012700,1781416232000,-500.0,0.000275,7]
[425012733,1781416232000,-500.0,0.00027944,8]
[425012731,1781416232000,-427.03666775,0.00027944,8]
[425012734,1781416232000,-500.0,0.00027944,8]
[425012736,1781416232000,-586.41418628,0.00027944,8]
[425012738,1781416232000,-1000.0,0.00027944,8]
[425012741,1781416232000,-237.0,0.00027945,5]
[425012740,1781416232000,-500.0,0.00027944,15]
[425012737,1781416232000,-500.0,0.00027944,2]
[425012739,1781416232000,-300.0,0.00027944,2]
[425012735,1781416232000,-616.21425597,0.00027944,8]
[425012743,1781416232000,-105489.18184091,0.00027945,6]
[425012742,1781416232000,-156.0,0.00027945,5]
[425012732,1781416232000,-2536.96,0.00027944,8]
[425012744,1781416232000,-3000.0,0.00027945,3]
[425012746,1781416232000,-1258.82,0.00027945,8]
[425012748,1781416232000,-500.0,0.00027945,8]
[425012750,1781416232000,-533.74,0.00027945,8]
[425012749,1781416232000,-500.0,0.00027945,8]
[425012747,1781416232000,-579.81,0.00027945,8]
[425012751,1781416232000,-813.1,0.00027945,8]
[425012752,1781416232000,-961.87,0.00027945,8]
[425012754,1781416232000,-500.0,0.00027945,8]
[425012753,1781416232000,-500.0,0.00027945,8]
[425012755,1781416232000,-2930.4,0.00027945,8]
[425012757,1781416232000,-1563.27,0.00027945,8]
[425012756,1781416232000,-500.0,0.00027945,8]
[425012745,1781416232000,-120.09645699,0.00027945,8]
[425012730,1781416232000,-500.0,0.00027944,8]
[425012702,1781416232000,-172.68,0.0002755,30]
[425012729,1781416232000,-150.24,0.00027944,7]
[425012728,1781416232000,-500.0,0.00027944,7]
[425012701,1781416232000,-278.0,0.000275,7]
[425012703,1781416232000,-153.01,0.0002755,2]
[425012758,1781416232000,-500.0,0.00027945,8]
[425012708,1781416232000,-466.0,0.00027721,10]
[425012709,1781416232000,-2500.0,0.00027845,2]
[425012704,1781416232000,-153.49,0.0002755,30]
[425012706,1781416232000,-706.55,0.00027619,2]
[425012711,1781416232000,-2379.69987605,0.00027845,2]
[425012710,1781416232000,-566.60103432,0.00027845,2]
[425012713,1781416232000,-732.9817207,0.00027845,2]
[425012716,1781416232000,-200.0,0.000279,10]
[425012714,1781416232000,-270.82,0.00027848,120]
[425012707,1781416232000,-1558.0,0.0002763,120]
[425012712,1781416232000,-731.7701626,0.00027845,2]
[425012715,1781416232000,-505.21139094,0.00027892,2]
[425012727,1781416232000,-500.0,0.00027944,7]
[425012724,1781416232000,-500.0,0.00027943,8]
[425012725,1781416232000,-995.93504039,0.00027944,8]
[425012723,1781416232000,-500.0,0.00027943,8]
[425012722,1781416232000,-732.98172066,0.00027936,2]
[425012721,1781416232000,-731.77016256,0.00027936,2]
[425012726,1781416232000,-995.93504038,0.00027944,8]
[425012719,1781416232000,-351.0,0.00027905,10]
[425012717,1781416232000,-161.0,0.00027905,10]
[425012718,1781416232000,-337.0,0.00027905,10]
[425012720,1781416232000,-395.0,0.00027905,10]
[425012796,1781416233000,-723.52,0.00027945,8]
[425012797,1781416233000,-1428.44,0.00027945,8]
[425012798,1781416233000,-777.82,0.00027945,8]
[425012794,1781416233000,-500.0,0.00027945,8]
[425012790,1781416233000,-2035.16,0.00027945,8]
[425012789,1781416233000,-500.0,0.00027945,8]
[425012791,1781416233000,-500.0,0.00027945,8]
[425012792,1781416233000,-500.0,0.00027945,8]
[425012793,1781416233000,-649.0,0.00027945,8]
[425012799,1781416233000,-500.0,0.00027945,8]
[425012795,1781416233000,-2679.21,0.00027945,8]
[425012801,1781416233000,-500.0,0.00027945,8]
[425012814,1781416233000,-500.0,0.00027945,8]
[425012803,1781416233000,-500.0,0.00027945,8]
[425012804,1781416233000,-500.0,0.00027945,8]
[425012802,1781416233000,-680.58,0.00027945,8]
[425012806,1781416233000,-788.07,0.00027945,8]
[425012808,1781416233000,-500.0,0.00027945,8]
[425012805,1781416233000,-500.0,0.00027945,8]
[425012807,1781416233000,-500.0,0.00027945,8]
[425012809,1781416233000,-500.0,0.00027945,8]
[425012810,1781416233000,-500.0,0.00027945,8]
[425012812,1781416233000,-581.98,0.00027945,8]
[425012813,1781416233000,-500.0,0.00027945,8]
[425012788,1781416233000,-659.7,0.00027945,8]
[425012800,1781416233000,-1929.52,0.00027945,8]
[425012787,1781416233000,-658.32,0.00027945,8]
[425012773,1781416233000,-549.94,0.00027945,8]
[425012785,1781416233000,-520.85,0.00027945,8]
[425012811,1781416233000,-500.0,0.00027945,8]
[425012759,1781416233000,-500.0,0.00027945,8]
[425012763,1781416233000,-500.0,0.00027945,8]
[425012760,1781416233000,-671.49,0.00027945,8]
[425012761,1781416233000,-500.0,0.00027945,8]
[425012762,1781416233000,-1560.69,0.00027945,8]
[425012765,1781416233000,-1714.43,0.00027945,8]
[425012764,1781416233000,-500.0,0.00027945,8]
[425012766,1781416233000,-500.0,0.00027945,8]
[425012767,1781416233000,-500.0,0.00027945,8]
[425012768,1781416233000,-753.7,0.00027945,8]
[425012769,1781416233000,-1419.27,0.00027945,8]
[425012786,1781416233000,-500.0,0.00027945,8]
[425012771,1781416233000,-1322.89,0.00027945,8]
[425012772,1781416233000,-774.03,0.00027945,8]
[425012776,1781416233000,-1031.13,0.00027945,8]
[425012775,1781416233000,-1275.33,0.00027945,8]
[425012774,1781416233000,-500.0,0.00027945,8]
[425012778,1781416233000,-500.0,0.00027945,8]
[425012777,1781416233000,-2415.9,0.00027945,8]
[425012780,1781416233000,-831.68,0.00027945,8]
[425012779,1781416233000,-500.0,0.00027945,8]